[Event "*** Titled Tuesday Blitz"]
[Site "Chess.com"]
[Date "2020.05.05"]
[Round "3"]
[White "ErikRonka"]
[Black "RaphaeI"]
[Result "0-1"]
[WhiteElo "2407"]
[BlackElo "2641"]
[TimeControl "180+1"]
[EndTime "10:30:08 PDT"]
[Termination "RaphaeI won by resignation"]

1. e4 {[%clk 0:03:00.9]} 1... e5 {[%clk 0:03:00.1]} 2. Nf3 {[%clk 0:03:00.8]}
2... Nc6 {[%clk 0:03:00.4]} 3. Bb5 {[%clk 0:03:00.7]} 3... a6 {[%clk 0:03:00.7]}
4. Ba4 {[%clk 0:03:00.9]} 4... Nf6 {[%clk 0:03:01]} 5. O-O {[%clk 0:03:00.7]}
5... Be7 {[%clk 0:03:01]} 6. Re1 {[%clk 0:03:00.4]} 6... b5 {[%clk 0:03:01.3]}
7. Bb3 {[%clk 0:03:00.5]} 7... O-O {[%clk 0:03:01.7]} 8. d3 {[%clk 0:02:35.9]}
8... d6 {[%clk 0:02:58]} 9. Bd2 {[%clk 0:02:35.9]} 9... Bg4 {[%clk 0:02:45.4]}
10. c3 {[%clk 0:02:23.2]} 10... Na5 {[%clk 0:02:42.4]} 11. Bc2 {[%clk
0:02:23.2]} 11... c5 {[%clk 0:02:42.5]} 12. h3 {[%clk 0:02:19.2]} 12... Be6
{[%clk 0:02:29.9]} 13. Bc1 {[%clk 0:02:02.3]} 13... Nc6 {[%clk 0:02:22.7]} 14.
d4 {[%clk 0:01:59.9]} 14... cxd4 {[%clk 0:02:21.9]} 15. cxd4 {[%clk 0:01:59.3]}
15... Nxd4 {[%clk 0:02:22.1]} 16. Nxd4 {[%clk 0:01:58.8]} 16... exd4 {[%clk
0:02:23]} 17. Qxd4 {[%clk 0:01:58.4]} 17... Rc8 {[%clk 0:02:23]} 18. Bb3 {[%clk
0:01:51.2]} 18... d5 {[%clk 0:02:12.8]} 19. e5 {[%clk 0:01:45.6]} 19... Ne4
{[%clk 0:02:11.4]} 20. Be3 {[%clk 0:01:35.3]} 20... f5 {[%clk 0:00:59.7]} 21.
Nc3 {[%clk 0:01:15.7]} 21... Nxc3 {[%clk 0:00:50.7]} 22. bxc3 {[%clk 0:01:15.6]}
22... Bc5 {[%clk 0:00:42.3]} 23. Qd3 {[%clk 0:01:13.9]} 23... Bxe3 {[%clk
0:00:32.8]} 24. Rxe3 {[%clk 0:01:13.1]} 24... f4 {[%clk 0:00:33.2]} 25. Ree1
{[%clk 0:01:04.6]} 25... f3 {[%clk 0:00:32.6]} 26. g3 {[%clk 0:00:45.3]} 26...
Rc5 {[%clk 0:00:29.3]} 27. Re3 {[%clk 0:00:39.5]} 27... Qc7 {[%clk 0:00:25.8]}
28. Rxf3 {[%clk 0:00:33.6]} 28... Rxf3 {[%clk 0:00:25]} 29. Qxf3 {[%clk
0:00:34.5]} 29... Rxc3 {[%clk 0:00:25.1]} 30. Qf4 {[%clk 0:00:22.5]} 30... a5
{[%clk 0:00:21.3]} 31. Rd1 {[%clk 0:00:21.9]} 31... Rc5 {[%clk 0:00:17.6]} 32.
a4 {[%clk 0:00:18.4]} 32... b4 {[%clk 0:00:12.2]} 33. g4 {[%clk 0:00:15.5]}
33... h6 {[%clk 0:00:11.9]} 34. Qd4 {[%clk 0:00:09.9]} 34... Kh8 {[%clk
0:00:11.7]} 35. Qf4 {[%clk 0:00:10.1]} 35... Qe7 {[%clk 0:00:07]} 36. Qe3 {[%clk
0:00:07.8]} 36... Rc3 {[%clk 0:00:06.2]} 37. Rd3 {[%clk 0:00:04]} 37... Qc7
{[%clk 0:00:05]} 38. Qd4 {[%clk 0:00:04.2]} 38... Rxd3 {[%clk 0:00:04.4]} 39.
Qxd3 {[%clk 0:00:05.1]} 39... Qc3 {[%clk 0:00:04.6]} 40. Qxc3 {[%clk 0:00:05.3]}
40... bxc3 {[%clk 0:00:04.9]} 41. Kf1 {[%clk 0:00:02.6]} 41... d4 {[%clk
0:00:05.2]} 42. Bc2 {[%clk 0:00:03]} 42... Bc4+ {[%clk 0:00:05.3]} 43. Ke1
{[%clk 0:00:03.4]} 43... d3 {[%clk 0:00:05.9]} 44. Bd1 {[%clk 0:00:02.3]} 44...
c2 {[%clk 0:00:05.2]} 45. Kd2 {[%clk 0:00:03.2]} 45... cxd1=Q+ {[%clk
0:00:05.1]} 46. Kxd1 {[%clk 0:00:04.1]} 46... g5 {[%clk 0:00:05.4]} 47. Kd2
{[%clk 0:00:03.2]} 47... Kg7 {[%clk 0:00:05.1]} 0-1

[Event "*** Titled Tuesday Blitz"]
[Site "Chess.com"]
[Date "2020.05.05"]
[Round "3"]
[White "TheCavemanChesss"]
[Black "Xeniya2005"]
[Result "0-1"]
[WhiteElo "2497"]
[BlackElo "2296"]
[TimeControl "180+1"]
[EndTime "10:30:08 PDT"]
[Termination "Xeniya2005 won by resignation"]

1. e4 {[%clk 0:03:00.9]} 1... c5 {[%clk 0:02:58.8]} 2. Nf3 {[%clk 0:03:01]} 2...
Nc6 {[%clk 0:02:58.9]} 3. d4 {[%clk 0:03:01.3]} 3... cxd4 {[%clk 0:02:59.8]} 4.
Nxd4 {[%clk 0:03:01.8]} 4... Nf6 {[%clk 0:03:00.3]} 5. Nc3 {[%clk 0:03:02.4]}
5... e6 {[%clk 0:03:00.6]} 6. Ndb5 {[%clk 0:03:00.5]} 6... Bc5 {[%clk
0:02:59.9]} 7. Be3 {[%clk 0:02:54.1]} 7... Bxe3 {[%clk 0:02:55.5]} 8. Nd6+
{[%clk 0:02:53.8]} 8... Ke7 {[%clk 0:02:55.1]} 9. fxe3 {[%clk 0:02:54.7]} 9...
a6 {[%clk 0:02:47.2]} 10. Qd2 {[%clk 0:02:52.9]} 10... Qc7 {[%clk 0:02:44]} 11.
O-O-O {[%clk 0:02:50.4]} 11... Rd8 {[%clk 0:02:42]} 12. Qf2 {[%clk 0:02:42.6]}
12... Kf8 {[%clk 0:02:16.9]} 13. Qf4 {[%clk 0:02:18.8]} 13... Qa5 {[%clk
0:02:02.1]} 14. Nc4 {[%clk 0:02:11.1]} 14... e5 {[%clk 0:01:23.9]} 15. Nxa5
{[%clk 0:01:54.2]} 15... exf4 {[%clk 0:01:22.8]} 16. Nxc6 {[%clk 0:01:54.3]}
16... bxc6 {[%clk 0:01:22.9]} 17. exf4 {[%clk 0:01:55.2]} 17... d6 {[%clk
0:01:18.9]} 18. Be2 {[%clk 0:01:53.6]} 18... Bg4 {[%clk 0:01:09.7]} 19. Rhe1
{[%clk 0:01:40.9]} 19... Bxe2 {[%clk 0:00:58.7]} 20. Rxe2 {[%clk 0:01:39.5]}
20... Ne8 {[%clk 0:00:49.2]} 21. g4 {[%clk 0:01:33.6]} 21... Ra7 {[%clk
0:00:43.1]} 22. g5 {[%clk 0:01:33.2]} 22... Re7 {[%clk 0:00:41.2]} 23. Red2
{[%clk 0:01:31.9]} 23... f6 {[%clk 0:00:35.8]} 24. h4 {[%clk 0:01:31.8]} 24...
fxg5 {[%clk 0:00:30.2]} 25. hxg5 {[%clk 0:01:31.9]} 25... g6 {[%clk 0:00:28.8]}
26. Rh2 {[%clk 0:01:28.5]} 26... Rf7 {[%clk 0:00:28.3]} 27. Rh4 {[%clk 0:01:25]}
27... Rdd7 {[%clk 0:00:26.9]} 28. Ne2 {[%clk 0:01:21.4]} 28... Nc7 {[%clk
0:00:26.5]} 29. Nd4 {[%clk 0:01:16]} 29... c5 {[%clk 0:00:25.9]} 30. Nc6 {[%clk
0:01:16.3]} 30... Ne6 {[%clk 0:00:24.4]} 31. e5 {[%clk 0:01:01.8]} 31... d5
{[%clk 0:00:19.2]} 32. Rf1 {[%clk 0:00:52.5]} 32... Nxg5 {[%clk 0:00:18.8]} 33.
e6 {[%clk 0:00:47.6]} 33... Nxe6 {[%clk 0:00:18]} 34. Ne5 {[%clk 0:00:48.1]}
34... Rde7 {[%clk 0:00:17.6]} 35. Nxf7 {[%clk 0:00:45.2]} 35... Rxf7 {[%clk
0:00:18]} 36. Kd2 {[%clk 0:00:45.4]} 36... h5 {[%clk 0:00:17.2]} 37. Ke2 {[%clk
0:00:43.6]} 37... Rf5 {[%clk 0:00:16.8]} 38. c3 {[%clk 0:00:43.8]} 38... Ke7
{[%clk 0:00:16.2]} 39. Ke3 {[%clk 0:00:44.2]} 39... Kd6 {[%clk 0:00:16.3]} 40.
Rh2 {[%clk 0:00:44.6]} 40... g5 {[%clk 0:00:14.7]} 41. Rg1 {[%clk 0:00:37.4]}
41... Nxf4 {[%clk 0:00:13.7]} 42. Kd2 {[%clk 0:00:35]} 42... g4 {[%clk
0:00:13.6]} 43. Rf2 {[%clk 0:00:35.3]} 43... Ke5 {[%clk 0:00:12.7]} 44. Re1+
{[%clk 0:00:35.6]} 44... Kf6 {[%clk 0:00:12.9]} 45. Ref1 {[%clk 0:00:35.8]}
45... Kg5 {[%clk 0:00:13.2]} 46. Ke3 {[%clk 0:00:36]} 46... Re5+ {[%clk
0:00:11.6]} 47. Kd2 {[%clk 0:00:36.5]} 47... Re4 {[%clk 0:00:12]} 48. b4 {[%clk
0:00:26.4]} 48... cxb4 {[%clk 0:00:11.3]} 49. cxb4 {[%clk 0:00:26.4]} 49... g3
{[%clk 0:00:11.5]} 50. Rf3 {[%clk 0:00:24]} 50... Kg4 {[%clk 0:00:11.6]} 51. Rb3
{[%clk 0:00:23.4]} 51... g2 {[%clk 0:00:11.3]} 52. Rg1 {[%clk 0:00:23.8]} 52...
h4 {[%clk 0:00:11.3]} 53. a4 {[%clk 0:00:22]} 53... h3 {[%clk 0:00:10.7]} 54. b5
{[%clk 0:00:20]} 54... axb5 {[%clk 0:00:10.9]} 55. axb5 {[%clk 0:00:20]} 55...
h2 {[%clk 0:00:11]} 0-1

[Event "*** Titled Tuesday Blitz"]
[Site "Chess.com"]
[Date "2020.05.05"]
[Round "3"]
[White "Bossche-CM"]
[Black "penguingm1"]
[Result "0-1"]
[WhiteElo "2455"]
[BlackElo "2818"]
[TimeControl "180+1"]
[EndTime "10:30:09 PDT"]
[Termination "penguingm1 won by resignation"]

1. e4 {[%clk 0:03:00.9]} 1... e5 {[%clk 0:02:59.8]} 2. Nf3 {[%clk 0:03:00.5]}
2... Nc6 {[%clk 0:02:59.2]} 3. Nc3 {[%clk 0:03:00.9]} 3... Nf6 {[%clk
0:02:58.7]} 4. d4 {[%clk 0:03:01.5]} 4... exd4 {[%clk 0:02:59.6]} 5. Nxd4 {[%clk
0:03:01.9]} 5... Bb4 {[%clk 0:03:00.1]} 6. Nxc6 {[%clk 0:03:02]} 6... bxc6
{[%clk 0:03:01]} 7. Bd3 {[%clk 0:03:02.5]} 7... d5 {[%clk 0:03:00.3]} 8. exd5
{[%clk 0:03:03.4]} 8... cxd5 {[%clk 0:03:01.2]} 9. O-O {[%clk 0:03:03.6]} 9...
O-O {[%clk 0:02:59.4]} 10. h3 {[%clk 0:03:03.2]} 10... c6 {[%clk 0:02:59.6]} 11.
Qf3 {[%clk 0:03:02.8]} 11... h6 {[%clk 0:02:55.9]} 12. Bf4 {[%clk 0:02:59.3]}
12... Bd6 {[%clk 0:02:56.2]} 13. Rfe1 {[%clk 0:02:57.9]} 13... Rb8 {[%clk
0:02:56.1]} 14. b3 {[%clk 0:02:56.8]} 14... Rb4 {[%clk 0:02:56.2]} 15. Ne2
{[%clk 0:02:54.1]} 15... Re8 {[%clk 0:02:52.9]} 16. c3 {[%clk 0:02:44.3]} 16...
Rb7 {[%clk 0:02:41]} 17. Nd4 {[%clk 0:02:43.8]} 17... c5 {[%clk 0:02:33.4]} 18.
Nf5 {[%clk 0:02:37.4]} 18... Bxf5 {[%clk 0:02:31.8]} 19. Bxf5 {[%clk 0:02:38.3]}
19... Rbe7 {[%clk 0:02:26.6]} 20. Rxe7 {[%clk 0:02:37.8]} 20... Qxe7 {[%clk
0:02:26.8]} 21. Rd1 {[%clk 0:02:33.5]} 21... Bxf4 {[%clk 0:02:12.8]} 22. Qxf4
{[%clk 0:02:34.4]} 22... Qe2 {[%clk 0:02:13.1]} 23. Qd2 {[%clk 0:02:26.1]} 23...
Qe5 {[%clk 0:02:05.5]} 24. Bc2 {[%clk 0:02:21.7]} 24... h5 {[%clk 0:02:03.7]}
25. Qd3 {[%clk 0:02:07.7]} 25... g6 {[%clk 0:02:02.4]} 26. Qf3 {[%clk
0:02:04.2]} 26... Kg7 {[%clk 0:02:02]} 27. g3 {[%clk 0:01:57.4]} 27... h4 {[%clk
0:01:50.1]} 28. g4 {[%clk 0:01:56]} 28... Rd8 {[%clk 0:01:48.2]} 29. Qe3 {[%clk
0:01:48.6]} 29... Qd6 {[%clk 0:01:35.3]} 30. Qg5 {[%clk 0:01:44.7]} 30... Qe7
{[%clk 0:01:17.1]} 31. Qe3 {[%clk 0:01:39.3]} 31... Qc7 {[%clk 0:01:12.2]} 32.
Qg5 {[%clk 0:01:35.6]} 32... d4 {[%clk 0:01:08.7]} 33. Qxh4 {[%clk 0:01:20.1]}
33... dxc3 {[%clk 0:00:25.3]} 34. g5 {[%clk 0:00:52.3]} 34... Nd5 {[%clk
0:00:07.4]} 35. Qh6+ {[%clk 0:00:21.8]} 35... Kg8 {[%clk 0:00:07.4]} 36. Bxg6
{[%clk 0:00:13.7]} 36... fxg6 {[%clk 0:00:08.3]} 37. Rxd5 {[%clk 0:00:13.5]}
37... Rxd5 {[%clk 0:00:07.2]} 38. Qxg6+ {[%clk 0:00:13.7]} 38... Kf8 {[%clk
0:00:04.7]} 39. Qf6+ {[%clk 0:00:12.7]} 39... Qf7 {[%clk 0:00:04.9]} 40. Qh8+
{[%clk 0:00:12.7]} 40... Ke7 {[%clk 0:00:05.3]} 41. Qxc3 {[%clk 0:00:13.3]}
41... Rxg5+ {[%clk 0:00:05.5]} 42. Kf1 {[%clk 0:00:12.7]} 42... Rd5 {[%clk
0:00:06.1]} 43. Qa5 {[%clk 0:00:10.7]} 43... Qe6 {[%clk 0:00:03.5]} 44. Qxa7+
{[%clk 0:00:10]} 44... Qd7 {[%clk 0:00:04]} 45. Qb6 {[%clk 0:00:09.7]} 45...
Rd1+ {[%clk 0:00:04.2]} 46. Kg2 {[%clk 0:00:10.3]} 46... Qd5+ {[%clk 0:00:04.8]}
47. Kg3 {[%clk 0:00:10.6]} 47... Rg1+ {[%clk 0:00:05.2]} 48. Kf4 {[%clk
0:00:11.2]} 48... Qd4+ {[%clk 0:00:04.6]} 49. Kf3 {[%clk 0:00:11.4]} 49... Qd3+
{[%clk 0:00:04.4]} 50. Kf4 {[%clk 0:00:11.7]} 50... Qd2+ {[%clk 0:00:04.3]} 51.
Kf3 {[%clk 0:00:11.5]} 51... Qd5+ {[%clk 0:00:03.4]} 52. Kf4 {[%clk 0:00:11.5]}
52... Qd6+ {[%clk 0:00:03.9]} 0-1

[Event "*** Titled Tuesday Blitz"]
[Site "Chess.com"]
[Date "2020.05.05"]
[Round "3"]
[White "PowerThinking2650"]
[Black "HouseOfDurin"]
[Result "1-0"]
[WhiteElo "2291"]
[BlackElo "1999"]
[TimeControl "180+1"]
[EndTime "10:30:10 PDT"]
[Termination "PowerThinking2650 won by resignation"]

1. e4 {[%clk 0:03:00.9]} 1... c5 {[%clk 0:02:59.8]} 2. Nf3 {[%clk 0:03:00.6]}
2... Nc6 {[%clk 0:03:00.2]} 3. d4 {[%clk 0:03:00.9]} 3... cxd4 {[%clk
0:03:01.1]} 4. Nxd4 {[%clk 0:03:01.4]} 4... e5 {[%clk 0:03:01.6]} 5. Nb5 {[%clk
0:03:00.9]} 5... d6 {[%clk 0:03:01.9]} 6. N1c3 {[%clk 0:03:00.1]} 6... a6 {[%clk
0:03:02.2]} 7. Na3 {[%clk 0:02:56.2]} 7... b5 {[%clk 0:03:02.6]} 8. Nd5 {[%clk
0:02:54.4]} 8... Nf6 {[%clk 0:03:03.1]} 9. Bg5 {[%clk 0:02:52]} 9... Be7 {[%clk
0:03:03.2]} 10. Bxf6 {[%clk 0:02:37.7]} 10... Bxf6 {[%clk 0:03:04.1]} 11. c3
{[%clk 0:02:38.2]} 11... O-O {[%clk 0:02:59]} 12. Nc2 {[%clk 0:02:36.1]} 12...
Bg5 {[%clk 0:02:58.9]} 13. h4 {[%clk 0:02:34]} 13... Bh6 {[%clk 0:02:47.4]} 14.
a4 {[%clk 0:02:32.6]} 14... Rb8 {[%clk 0:02:35.9]} 15. axb5 {[%clk 0:02:17.4]}
15... axb5 {[%clk 0:02:36.8]} 16. b4 {[%clk 0:02:17.4]} 16... Be6 {[%clk
0:02:32.8]} 17. Ra6 {[%clk 0:02:12.4]} 17... Ne7 {[%clk 0:01:13]} 18. Rxd6
{[%clk 0:02:03.3]} 18... Qe8 {[%clk 0:00:51.3]} 19. Nc7 {[%clk 0:01:38.7]} 19...
Qc8 {[%clk 0:00:50.3]} 20. Nxb5 {[%clk 0:01:20.2]} 20... Rxb5 {[%clk 0:00:42.6]}
21. Bxb5 {[%clk 0:01:18.7]} 21... Qxc3+ {[%clk 0:00:42.6]} 22. Kf1 {[%clk
0:01:18.1]} 22... Bb3 {[%clk 0:00:28.3]} 23. Rxh6 {[%clk 0:00:40.9]} 23... gxh6
{[%clk 0:00:14.6]} 24. Qg4+ {[%clk 0:00:36.5]} 24... Kh8 {[%clk 0:00:14]} 25.
Ne3 {[%clk 0:00:31.3]} 25... Qc1+ {[%clk 0:00:12.2]} 26. Ke2 {[%clk 0:00:30.9]}
26... Qxh1 {[%clk 0:00:10.2]} 27. Qh5 {[%clk 0:00:24.1]} 27... Be6 {[%clk
0:00:06.8]} 28. Qxe5+ {[%clk 0:00:22.5]} 28... Kg8 {[%clk 0:00:06.4]} 29. Bd3
{[%clk 0:00:20.2]} 29... Ng6 {[%clk 0:00:06]} 30. Qf6 {[%clk 0:00:18.8]} 30...
Qxh4 {[%clk 0:00:05.7]} 31. Qxh4 {[%clk 0:00:18.3]} 31... Nxh4 {[%clk
0:00:06.6]} 32. b5 {[%clk 0:00:16.3]} 32... Rb8 {[%clk 0:00:06.5]} 33. g3 {[%clk
0:00:13.5]} 33... Ng6 {[%clk 0:00:06.4]} 34. f4 {[%clk 0:00:14.2]} 34... Bd7
{[%clk 0:00:05.5]} 35. Nd5 {[%clk 0:00:12.4]} 35... Bxb5 {[%clk 0:00:05.4]} 36.
Nf6+ {[%clk 0:00:12.2]} 36... Kg7 {[%clk 0:00:05]} 37. e5 {[%clk 0:00:12.3]}
37... Bxd3+ {[%clk 0:00:04.2]} 38. Kxd3 {[%clk 0:00:13.2]} 38... Rb3+ {[%clk
0:00:04.2]} 39. Ke4 {[%clk 0:00:13.1]} 39... Rxg3 {[%clk 0:00:05.1]} 40. Nh5+
{[%clk 0:00:13.6]} 40... Kf8 {[%clk 0:00:04.8]} 41. Nxg3 {[%clk 0:00:14.5]}
41... Ke7 {[%clk 0:00:05.2]} 42. Nf5+ {[%clk 0:00:14.3]} 42... Ke6 {[%clk
0:00:05.3]} 43. Nxh6 {[%clk 0:00:15.2]} 43... f6 {[%clk 0:00:05.8]} 44. f5+
{[%clk 0:00:15.3]} 44... Ke7 {[%clk 0:00:04.9]} 45. fxg6 {[%clk 0:00:15.6]}
45... hxg6 {[%clk 0:00:04.7]} 46. Ng8+ {[%clk 0:00:15.8]} 46... Ke6 {[%clk
0:00:04.6]} 47. Nxf6 {[%clk 0:00:16.7]} 47... g5 {[%clk 0:00:04.9]} 48. Ng4
{[%clk 0:00:16.9]} 48... Ke7 {[%clk 0:00:04.7]} 49. Kf5 {[%clk 0:00:17.8]} 49...
Kf7 {[%clk 0:00:05.2]} 50. Kxg5 {[%clk 0:00:18.1]} 50... Kg7 {[%clk 0:00:06.1]}
51. e6 {[%clk 0:00:17.8]} 51... Kf8 {[%clk 0:00:06]} 52. Kf6 {[%clk 0:00:18.2]}
52... Ke8 {[%clk 0:00:06.4]} 53. e7 {[%clk 0:00:18.2]} 53... Kd7 {[%clk
0:00:06.7]} 54. Kf7 {[%clk 0:00:18.9]} 54... Kd6 {[%clk 0:00:07.2]} 55. e8=Q
{[%clk 0:00:19.8]} 55... Kc5 {[%clk 0:00:07.8]} 56. Qd7 {[%clk 0:00:19.3]} 1-0

[Event "*** Titled Tuesday Blitz"]
[Site "Chess.com"]
[Date "2020.05.05"]
[Round "3"]
[White "spidernv"]
[Black "Shield12"]
[Result "1/2-1/2"]
[WhiteElo "2461"]
[BlackElo "2806"]
[TimeControl "180+1"]
[EndTime "10:30:11 PDT"]
[Termination "Game drawn by repetition"]

1. e4 {[%clk 0:03:00.9]} 1... e5 {[%clk 0:02:59.8]} 2. Nf3 {[%clk 0:03:00.4]}
2... Nc6 {[%clk 0:03:00.3]} 3. Bb5 {[%clk 0:03:00.1]} 3... a6 {[%clk 0:03:00]}
4. Ba4 {[%clk 0:02:59.9]} 4... Nf6 {[%clk 0:03:00.2]} 5. Nc3 {[%clk 0:02:59.7]}
5... b5 {[%clk 0:02:53.4]} 6. Bb3 {[%clk 0:02:59.1]} 6... Bc5 {[%clk 0:02:52.5]}
7. d3 {[%clk 0:02:58.8]} 7... d6 {[%clk 0:02:52.2]} 8. h3 {[%clk 0:02:58.1]}
8... h6 {[%clk 0:02:52]} 9. O-O {[%clk 0:02:57.5]} 9... O-O {[%clk 0:02:51.6]}
10. Be3 {[%clk 0:02:56.7]} 10... Bxe3 {[%clk 0:02:50.1]} 11. fxe3 {[%clk
0:02:55.7]} 11... Ne7 {[%clk 0:02:50]} 12. a3 {[%clk 0:02:52.1]} 12... Ng6
{[%clk 0:02:49.7]} 13. d4 {[%clk 0:02:51.6]} 13... Qe7 {[%clk 0:02:47.4]} 14.
Nd5 {[%clk 0:02:50.8]} 14... Nxd5 {[%clk 0:02:47.2]} 15. Bxd5 {[%clk 0:02:48.7]}
15... Rb8 {[%clk 0:02:47.5]} 16. dxe5 {[%clk 0:02:48.1]} 16... Nxe5 {[%clk
0:02:45.7]} 17. Nxe5 {[%clk 0:02:46.9]} 17... Qxe5 {[%clk 0:02:46.6]} 18. Qd4
{[%clk 0:02:46.3]} 18... Qe7 {[%clk 0:02:33.9]} 19. Qa7 {[%clk 0:02:42.8]} 19...
Be6 {[%clk 0:02:33]} 20. Bxe6 {[%clk 0:02:38.1]} 20... Qxe6 {[%clk 0:02:32.3]}
21. Rf4 {[%clk 0:02:33.1]} 21... Qe5 {[%clk 0:02:23.8]} 22. Qd4 {[%clk
0:02:23.1]} 22... Rbe8 {[%clk 0:02:21]} 23. Raf1 {[%clk 0:02:19.7]} 23... Re7
{[%clk 0:02:20.1]} 24. R1f3 {[%clk 0:02:14.2]} 24... g6 {[%clk 0:02:18.7]} 25.
Kf2 {[%clk 0:02:09.7]} 25... a5 {[%clk 0:02:11.4]} 26. Ke2 {[%clk 0:02:04.4]}
26... h5 {[%clk 0:02:03.2]} 27. g4 {[%clk 0:01:55.7]} 27... hxg4 {[%clk
0:02:01.4]} 28. Rxg4 {[%clk 0:01:51]} 28... c5 {[%clk 0:02:01.2]} 29. Qxe5
{[%clk 0:01:41.7]} 29... Rxe5 {[%clk 0:02:02.1]} 30. Rf6 {[%clk 0:01:41.3]}
30... Rd8 {[%clk 0:02:00.8]} 31. h4 {[%clk 0:01:39.7]} 31... Kg7 {[%clk
0:01:58.8]} 32. Rgf4 {[%clk 0:01:39.3]} 32... Rd7 {[%clk 0:01:58.5]} 33. Kf3
{[%clk 0:01:36.8]} 33... Re8 {[%clk 0:01:46.3]} 34. Kg4 {[%clk 0:01:26.7]} 34...
Rh8 {[%clk 0:01:39.1]} 35. Rf2 {[%clk 0:01:21.2]} 35... Rh5 {[%clk 0:01:37.9]}
36. R6f4 {[%clk 0:01:18.8]} 36... Re5 {[%clk 0:01:35.2]} 37. Rd2 {[%clk
0:01:18.2]} 37... d5 {[%clk 0:01:28.7]} 38. exd5 {[%clk 0:01:06.7]} 38... Rdxd5
{[%clk 0:01:29.6]} 39. Rxd5 {[%clk 0:01:03.9]} 39... Rxd5 {[%clk 0:01:30.5]} 40.
Rf2 {[%clk 0:01:04]} 40... Re5 {[%clk 0:01:28.7]} 41. Kf4 {[%clk 0:00:59.6]}
41... Rf5+ {[%clk 0:01:28.4]} 42. Kg3 {[%clk 0:00:59.6]} 42... Rxf2 {[%clk
0:01:28.1]} 43. Kxf2 {[%clk 0:00:59.9]} 43... Kf6 {[%clk 0:01:29]} 44. Kf3
{[%clk 0:00:58.6]} 44... Ke5 {[%clk 0:01:27.7]} 45. c3 {[%clk 0:00:54.1]} 45...
Kf5 {[%clk 0:01:11.6]} 46. e4+ {[%clk 0:00:52.5]} 46... Ke5 {[%clk 0:01:11.5]}
47. Ke3 {[%clk 0:00:52.4]} 47... f6 {[%clk 0:01:03.2]} 48. Kf3 {[%clk
0:00:51.2]} 48... a4 {[%clk 0:00:52.7]} 49. Ke3 {[%clk 0:00:47.1]} 49... f5
{[%clk 0:00:21.8]} 50. exf5 {[%clk 0:00:45.5]} 50... Kxf5 {[%clk 0:00:22.7]} 51.
Kf3 {[%clk 0:00:44.4]} 51... Ke5 {[%clk 0:00:21.3]} 52. Kg4 {[%clk 0:00:42.2]}
52... Kf6 {[%clk 0:00:16.2]} 53. Kf4 {[%clk 0:00:41.8]} 53... Ke6 {[%clk
0:00:16.6]} 54. Kg5 {[%clk 0:00:40.7]} 54... Kf7 {[%clk 0:00:16.8]} 55. Kf4
{[%clk 0:00:39.8]} 55... Kf6 {[%clk 0:00:17.1]} 56. Ke4 {[%clk 0:00:29.8]} 56...
Ke6 {[%clk 0:00:17.2]} 57. Kf4 {[%clk 0:00:28.5]} 57... Kf6 {[%clk 0:00:17.4]}
58. Kg4 {[%clk 0:00:28.6]} 58... Ke6 {[%clk 0:00:16.9]} 59. Kg5 {[%clk
0:00:28.2]} 59... Kf7 {[%clk 0:00:17.1]} 60. Kf4 {[%clk 0:00:27.8]} 60... Kf6
{[%clk 0:00:17.3]} 1/2-1/2

[Event "*** Titled Tuesday Blitz"]
[Site "Chess.com"]
[Date "2020.05.05"]
[Round "3"]
[White "JulAnt"]
[Black "Evgeny81"]
[Result "1-0"]
[WhiteElo "2440"]
[BlackElo "2663"]
[TimeControl "180+1"]
[EndTime "10:30:11 PDT"]
[Termination "JulAnt won by resignation"]

1. e4 {[%clk 0:03:00.9]} 1... e6 {[%clk 0:02:59.8]} 2. d4 {[%clk 0:03:00.7]}
2... d5 {[%clk 0:02:59.9]} 3. Nd2 {[%clk 0:03:01.3]} 3... Nf6 {[%clk 0:02:58.7]}
4. e5 {[%clk 0:03:01.3]} 4... Nfd7 {[%clk 0:02:59.2]} 5. Bd3 {[%clk 0:03:01.1]}
5... c5 {[%clk 0:02:59.1]} 6. c3 {[%clk 0:03:01.7]} 6... Nc6 {[%clk 0:02:59.4]}
7. Ne2 {[%clk 0:03:01.9]} 7... cxd4 {[%clk 0:02:58.4]} 8. cxd4 {[%clk
0:03:01.9]} 8... f6 {[%clk 0:02:58.9]} 9. exf6 {[%clk 0:03:02.4]} 9... Nxf6
{[%clk 0:02:59.4]} 10. O-O {[%clk 0:03:01.5]} 10... Bd6 {[%clk 0:02:59.9]} 11.
Nf3 {[%clk 0:03:01.3]} 11... O-O {[%clk 0:03:00.1]} 12. Bg5 {[%clk 0:03:00.5]}
12... Bd7 {[%clk 0:02:55.4]} 13. Bh4 {[%clk 0:02:59.3]} 13... Qb6 {[%clk
0:02:52]} 14. Rb1 {[%clk 0:02:46.6]} 14... Nb4 {[%clk 0:02:41.7]} 15. a3 {[%clk
0:02:32.9]} 15... Nxd3 {[%clk 0:02:38.5]} 16. Qxd3 {[%clk 0:02:33.8]} 16... Bb5
{[%clk 0:02:38.3]} 17. Qd1 {[%clk 0:02:30]} 17... Ne4 {[%clk 0:02:27]} 18. Re1
{[%clk 0:02:25.9]} 18... e5 {[%clk 0:02:05.8]} 19. Nc3 {[%clk 0:02:00.5]} 19...
Nxc3 {[%clk 0:01:54.4]} 20. bxc3 {[%clk 0:01:59.4]} 20... e4 {[%clk 0:01:55]}
21. Ng5 {[%clk 0:01:32.8]} 21... Qc6 {[%clk 0:01:31.4]} 22. Qh5 {[%clk 0:01:02]}
22... h6 {[%clk 0:01:28.8]} 23. Ne6 {[%clk 0:01:01.9]} 23... Rf7 {[%clk
0:00:56.2]} 24. Nd8 {[%clk 0:00:55.2]} 24... Rxd8 {[%clk 0:00:55.3]} 25. Bxd8
{[%clk 0:00:56.1]} 25... Bd3 {[%clk 0:00:51.1]} 26. Ra1 {[%clk 0:00:38.1]} 26...
Bxh2+ {[%clk 0:00:50]} 27. Qxh2 {[%clk 0:00:29.9]} 27... Qd7 {[%clk 0:00:41.5]}
28. Bh4 {[%clk 0:00:27.3]} 28... Rf5 {[%clk 0:00:40.4]} 29. Bg3 {[%clk
0:00:20.5]} 29... Qf7 {[%clk 0:00:40.5]} 30. Qh4 {[%clk 0:00:17]} 30... Kh7
{[%clk 0:00:38.9]} 31. Re3 {[%clk 0:00:15.7]} 31... g5 {[%clk 0:00:38.5]} 32.
Qh3 {[%clk 0:00:15.4]} 32... h5 {[%clk 0:00:35.5]} 33. Rd1 {[%clk 0:00:12.8]}
33... h4 {[%clk 0:00:31.9]} 34. Be5 {[%clk 0:00:12.8]} 34... Rxf2 {[%clk
0:00:30.3]} 35. Rexd3 {[%clk 0:00:13]} 35... exd3 {[%clk 0:00:29.2]} 36. Qxd3+
{[%clk 0:00:13.9]} 36... Kh6 {[%clk 0:00:29.5]} 37. Qe3 {[%clk 0:00:14.3]} 37...
Rf5 {[%clk 0:00:23]} 38. Re1 {[%clk 0:00:14.6]} 38... Kh5 {[%clk 0:00:16.9]} 39.
Qe2+ {[%clk 0:00:15]} 39... g4 {[%clk 0:00:16.8]} 40. Bd6 {[%clk 0:00:13.4]}
40... Qg6 {[%clk 0:00:14.6]} 41. Qe7 {[%clk 0:00:13.2]} 41... h3 {[%clk
0:00:10.7]} 42. Re5 {[%clk 0:00:12.5]} 42... g3 {[%clk 0:00:06.5]} 43. Rxf5+
{[%clk 0:00:04.2]} 43... Qxf5 {[%clk 0:00:06.8]} 44. Qe2+ {[%clk 0:00:04.8]}
44... Kh4 {[%clk 0:00:05.3]} 45. Be7+ {[%clk 0:00:03.3]} 1-0